[Event "Late-Titled-Tuesday-Blitz-April-16-2024"]
[Site "Chess.com"]
[Date "2024.04.16"]
[Round "11"]
[White "jbking07"]
[Black "Lupul_Cenusiu"]
[Result "1-0"]
[WhiteElo "2455"]
[BlackElo "2664"]
[TimeControl "180+1"]
[EndTime "16:06:18 PDT"]
[Termination "jbking07 won by resignation"]

1. e4 {[%clk 0:02:57.4]} 1... c6 {[%clk 0:03:00.1]} 2. d4 {[%clk 0:02:56.7]}
2... d5 {[%clk 0:03:01]} 3. Nd2 {[%clk 0:02:57.2]} 3... dxe4 {[%clk 0:03:01.1]}
4. Nxe4 {[%clk 0:02:58.1]} 4... Nf6 {[%clk 0:03:01.7]} 5. Ng3 {[%clk 0:02:57.5]}
5... h5 {[%clk 0:03:01.4]} 6. h4 {[%clk 0:02:56.5]} 6... Bg4 {[%clk 0:03:00.2]}
7. Nf3 {[%clk 0:02:55.1]} 7... e6 {[%clk 0:03:00.2]} 8. Be2 {[%clk 0:02:54.2]}
8... Bd6 {[%clk 0:02:59.2]} 9. Bg5 {[%clk 0:02:52]} 9... Bxg3 {[%clk 0:02:54]}
10. fxg3 {[%clk 0:02:52.9]} 10... Nbd7 {[%clk 0:02:51.9]} 11. Qd3 {[%clk
0:02:50.8]} 11... Qa5+ {[%clk 0:02:43]} 12. Bd2 {[%clk 0:02:48.1]} 12... Qb6
{[%clk 0:02:34.3]} 13. O-O {[%clk 0:02:37.2]} 13... O-O {[%clk 0:02:33]} 14. c3
{[%clk 0:02:35.6]} 14... e5 {[%clk 0:02:25.5]} 15. Qe3 {[%clk 0:02:14.2]} 15...
exd4 {[%clk 0:02:17.4]} 16. Qxd4 {[%clk 0:02:07.9]} 16... Qxd4+ {[%clk
0:02:05.7]} 17. Nxd4 {[%clk 0:02:08.8]} 17... Bxe2 {[%clk 0:02:06]} 18. Nxe2
{[%clk 0:02:09.7]} 18... Rfe8 {[%clk 0:01:53.6]} 19. Nd4 {[%clk 0:02:05.3]}
19... Ne5 {[%clk 0:01:44.8]} 20. Bg5 {[%clk 0:01:53.7]} 20... Nfg4 {[%clk
0:01:36.3]} 21. Rae1 {[%clk 0:01:51]} 21... Nd3 {[%clk 0:01:34.6]} 22. Rd1
{[%clk 0:01:49.6]} 22... Nc5 {[%clk 0:01:12.1]} 23. Nf5 {[%clk 0:01:31.5]} 23...
f6 {[%clk 0:00:57.1]} 24. Bf4 {[%clk 0:01:30.7]} 24... Rad8 {[%clk 0:00:46.9]}
25. Rxd8 {[%clk 0:01:04.2]} 25... Rxd8 {[%clk 0:00:47.8]} 26. b4 {[%clk
0:01:03.8]} 26... Ne4 {[%clk 0:00:44.3]} 27. c4 {[%clk 0:01:01]} 27... g6 {[%clk
0:00:36.9]} 28. Ne3 {[%clk 0:00:47.4]} 28... Nxe3 {[%clk 0:00:34.4]} 29. Bxe3
{[%clk 0:00:48.3]} 29... Kg7 {[%clk 0:00:23.4]} 30. Bxa7 {[%clk 0:00:41.2]}
30... Nxg3 {[%clk 0:00:22.4]} 31. Re1 {[%clk 0:00:33.3]} 31... Nf5 {[%clk
0:00:22.6]} 32. Re2 {[%clk 0:00:29.4]} 32... Rd1+ {[%clk 0:00:20.6]} 33. Kh2
{[%clk 0:00:28.8]} 33... Nxh4 {[%clk 0:00:20.5]} 34. Re7+ {[%clk 0:00:27]} 34...
Kh6 {[%clk 0:00:21.1]} 35. Be3+ {[%clk 0:00:23.1]} 35... g5 {[%clk 0:00:19]} 36.
Rxb7 {[%clk 0:00:23.4]} 36... Re1 {[%clk 0:00:17.5]} 37. Bf2 {[%clk 0:00:23.5]}
37... Re2 {[%clk 0:00:17.9]} 38. Bxh4 {[%clk 0:00:23.9]} 38... g4 {[%clk
0:00:18.4]} 39. Rf7 {[%clk 0:00:21.2]} 39... g3+ {[%clk 0:00:14.5]} 40. Kh3
{[%clk 0:00:19.7]} 40... Rxa2 {[%clk 0:00:14.5]} 41. Rxf6+ {[%clk 0:00:20.1]}
41... Kg7 {[%clk 0:00:14.7]} 42. Rxc6 {[%clk 0:00:21]} 42... Rb2 {[%clk
0:00:14.6]} 43. b5 {[%clk 0:00:20.8]} 43... Rb3 {[%clk 0:00:14.4]} 44. b6 {[%clk
0:00:20.8]} 44... Kf7 {[%clk 0:00:12.8]} 45. Rc7+ {[%clk 0:00:21.1]} 45... Ke6
{[%clk 0:00:12.6]} 46. b7 {[%clk 0:00:22]} 46... Kf5 {[%clk 0:00:11.9]} 47. c5
{[%clk 0:00:20.8]} 47... Kf4 {[%clk 0:00:10.4]} 48. c6 {[%clk 0:00:21.2]} 48...
Rb1 {[%clk 0:00:10.9]} 49. Rf7+ {[%clk 0:00:22]} 49... Ke3 {[%clk 0:00:10.5]}
50. Bxg3 {[%clk 0:00:21.7]} 50... Rh1+ {[%clk 0:00:10.1]} 51. Bh2 {[%clk
0:00:22.4]} 51... Rc1 {[%clk 0:00:09.1]} 52. b8=Q {[%clk 0:00:22.8]} 52... Rc3
{[%clk 0:00:07.4]} 53. Qf4+ {[%clk 0:00:23.7]} 53... Ke2+ {[%clk 0:00:07.4]} 54.
Bg3 {[%clk 0:00:23.9]} 54... h4 {[%clk 0:00:06.6]} 55. Qf2+ {[%clk 0:00:24.8]}
55... Kd1 {[%clk 0:00:06.4]} 56. Qe1+ {[%clk 0:00:25.7]} 56... Kc2 {[%clk
0:00:06.9]} 57. Rf2+ {[%clk 0:00:25.8]} 57... Kb3 {[%clk 0:00:07]} 58. Qxc3+
{[%clk 0:00:26.7]} 58... Kxc3 {[%clk 0:00:07.2]} 59. Rf3+ {[%clk 0:00:27.6]} 1-0

[Event "Late-Titled-Tuesday-Blitz-April-16-2024"]
[Site "Chess.com"]
[Date "2024.04.16"]
[Round "11"]
[White "Rawnsdale"]
[Black "MarceloPlaya"]
[Result "0-1"]
[WhiteElo "2471"]
[BlackElo "2338"]
[TimeControl "180+1"]
[EndTime "16:06:21 PDT"]
[Termination "MarceloPlaya won on time"]

1. e4 {[%clk 0:03:00.9]} 1... e6 {[%clk 0:02:58.1]} 2. d4 {[%clk 0:03:00.2]}
2... d5 {[%clk 0:02:58.2]} 3. e5 {[%clk 0:03:00.7]} 3... c5 {[%clk 0:02:57.8]}
4. c3 {[%clk 0:03:01.2]} 4... Nc6 {[%clk 0:02:57.2]} 5. Nf3 {[%clk 0:03:01]}
5... Qb6 {[%clk 0:02:56.4]} 6. Be2 {[%clk 0:03:01.2]} 6... Bd7 {[%clk 0:02:56]}
7. O-O {[%clk 0:03:00.5]} 7... f6 {[%clk 0:02:55.4]} 8. a3 {[%clk 0:02:55.3]}
8... c4 {[%clk 0:02:53.2]} 9. Nbd2 {[%clk 0:02:52.2]} 9... f5 {[%clk 0:02:43]}
10. b3 {[%clk 0:02:49.7]} 10... cxb3 {[%clk 0:02:41.1]} 11. Qxb3 {[%clk
0:02:42.4]} 11... Qxb3 {[%clk 0:02:38.2]} 12. Nxb3 {[%clk 0:02:43.3]} 12... Nh6
{[%clk 0:02:31.8]} 13. c4 {[%clk 0:02:37.1]} 13... dxc4 {[%clk 0:02:09.3]} 14.
Bxc4 {[%clk 0:02:38]} 14... O-O-O {[%clk 0:02:00.6]} 15. d5 {[%clk 0:02:30.8]}
15... exd5 {[%clk 0:01:55.1]} 16. Bxd5 {[%clk 0:02:31.7]} 16... Ng4 {[%clk
0:01:53.2]} 17. Bg5 {[%clk 0:02:28.9]} 17... Re8 {[%clk 0:01:44]} 18. Rac1
{[%clk 0:02:09.6]} 18... Nxe5 {[%clk 0:01:36.9]} 19. Nxe5 {[%clk 0:02:05.2]}
19... Rxe5 {[%clk 0:01:35.9]} 20. Rfd1 {[%clk 0:02:01]} 20... Bxa3 {[%clk
0:01:31.5]} 21. Ra1 {[%clk 0:01:57.7]} 21... Rhe8 {[%clk 0:01:14.1]} 22. Bf4
{[%clk 0:01:53.8]} 22... Re2 {[%clk 0:01:05.4]} 23. Bf3 {[%clk 0:01:40.1]} 23...
Bb2 {[%clk 0:00:29.5]} 24. Rab1 {[%clk 0:01:27.5]} 24... Rc2 {[%clk 0:00:28.8]}
25. h4 {[%clk 0:01:21.1]} 25... Bf6 {[%clk 0:00:26.7]} 26. h5 {[%clk 0:00:59.3]}
26... Be5 {[%clk 0:00:26.3]} 27. Be3 {[%clk 0:00:56.9]} 27... f4 {[%clk
0:00:25.1]} 28. Bd4 {[%clk 0:00:52.8]} 28... Bf5 {[%clk 0:00:22.6]} 29. Bxc6
{[%clk 0:00:41.3]} 29... bxc6 {[%clk 0:00:20.8]} 30. Re1 {[%clk 0:00:39.9]}
30... Rc4 {[%clk 0:00:14.4]} 31. Rbd1 {[%clk 0:00:19.8]} 31... Bc2 {[%clk
0:00:13.6]} 32. Na5 {[%clk 0:00:14.6]} 32... Rxd4 {[%clk 0:00:12.1]} 33. Rxd4
{[%clk 0:00:14.4]} 33... Bxd4 {[%clk 0:00:12.2]} 34. Rxe8+ {[%clk 0:00:15.3]}
34... Kd7 {[%clk 0:00:12.2]} 35. Rg8 {[%clk 0:00:14.1]} 35... c5 {[%clk
0:00:12]} 36. h6 {[%clk 0:00:12.8]} 36... gxh6 {[%clk 0:00:11.4]} 37. Nc4 {[%clk
0:00:12.4]} 37... Kc6 {[%clk 0:00:10.7]} 38. Rc8+ {[%clk 0:00:12.1]} 38... Kd5
{[%clk 0:00:10.6]} 39. Nd2 {[%clk 0:00:10.8]} 39... a5 {[%clk 0:00:10.4]} 40.
Ra8 {[%clk 0:00:09]} 40... a4 {[%clk 0:00:10.3]} 41. Kf1 {[%clk 0:00:09]} 41...
Bd3+ {[%clk 0:00:09.2]} 42. Ke1 {[%clk 0:00:08.9]} 42... Bc2 {[%clk 0:00:09.4]}
43. Nf3 {[%clk 0:00:08.1]} 43... Bc3+ {[%clk 0:00:08.9]} 44. Ke2 {[%clk
0:00:08.4]} 44... c4 {[%clk 0:00:09]} 45. Nd2 {[%clk 0:00:04.9]} 45... Bb4
{[%clk 0:00:07]} 46. Nf3 {[%clk 0:00:04]} 46... a3 {[%clk 0:00:06.4]} 47. Ne1
{[%clk 0:00:04]} 47... Bb3 {[%clk 0:00:05.9]} 48. Rd8+ {[%clk 0:00:01.6]} 48...
Kc6 {[%clk 0:00:05.2]} 49. Ra8 {[%clk 0:00:01.9]} 49... a2 {[%clk 0:00:04.6]}
50. Nf3 {[%clk 0:00:02.4]} 50... Bc3 {[%clk 0:00:04.5]} 0-1

[Event "Late-Titled-Tuesday-Blitz-April-16-2024"]
[Site "Chess.com"]
[Date "2024.04.16"]
[Round "11"]
[White "NMJeevanK"]
[Black "szachmistrz2500"]
[Result "1-0"]
[WhiteElo "2579"]
[BlackElo "2469"]
[TimeControl "180+1"]
[EndTime "16:06:23 PDT"]
[Termination "NMJeevanK won on time"]

1. e4 {[%clk 0:03:00.9]} 1... e6 {[%clk 0:02:59.5]} 2. d4 {[%clk 0:03:00.4]}
2... d5 {[%clk 0:02:59.7]} 3. exd5 {[%clk 0:03:01.3]} 3... exd5 {[%clk
0:02:59.7]} 4. Bd3 {[%clk 0:03:01]} 4... Bd6 {[%clk 0:02:59.2]} 5. Nf3 {[%clk
0:03:01.2]} 5... Ne7 {[%clk 0:02:56.1]} 6. O-O {[%clk 0:03:01.5]} 6... Bg4
{[%clk 0:02:56.1]} 7. h3 {[%clk 0:03:01.9]} 7... Bh5 {[%clk 0:02:55.7]} 8. Re1
{[%clk 0:03:02.4]} 8... Nc6 {[%clk 0:02:54.4]} 9. Nbd2 {[%clk 0:03:03.1]} 9...
Nxd4 {[%clk 0:02:44.6]} 10. c3 {[%clk 0:03:03.6]} 10... Nxf3+ {[%clk 0:02:44.1]}
11. Nxf3 {[%clk 0:03:04.5]} 11... Qd7 {[%clk 0:02:39.9]} 12. a4 {[%clk 0:02:59]}
12... O-O-O {[%clk 0:02:34.4]} 13. a5 {[%clk 0:02:59.4]} 13... Kb8 {[%clk
0:02:31.1]} 14. a6 {[%clk 0:02:59.4]} 14... b6 {[%clk 0:02:30.6]} 15. Be2 {[%clk
0:02:55.7]} 15... f6 {[%clk 0:02:26.1]} 16. Nd4 {[%clk 0:02:54.1]} 16... Bxe2
{[%clk 0:02:19.6]} 17. Qxe2 {[%clk 0:02:55]} 17... Nf5 {[%clk 0:02:13.8]} 18.
Be3 {[%clk 0:02:29.7]} 18... Rhe8 {[%clk 0:02:05.6]} 19. Nxf5 {[%clk 0:02:17.9]}
19... Qxf5 {[%clk 0:02:04.2]} 20. Qb5 {[%clk 0:02:07.7]} 20... Qd7 {[%clk
0:02:04]} 21. Qd3 {[%clk 0:02:04.4]} 21... g6 {[%clk 0:01:59.4]} 22. Kh1 {[%clk
0:02:04.6]} 22... Qc6 {[%clk 0:01:58.2]} 23. Red1 {[%clk 0:01:59.3]} 23... Bc5
{[%clk 0:01:53.5]} 24. Bxc5 {[%clk 0:01:56.7]} 24... Qxc5 {[%clk 0:01:53.5]} 25.
Qf3 {[%clk 0:01:57.4]} 25... Rd6 {[%clk 0:01:48.3]} 26. Re1 {[%clk 0:01:56.5]}
26... Rde6 {[%clk 0:01:45.4]} 27. Rxe6 {[%clk 0:01:54.3]} 27... Rxe6 {[%clk
0:01:45.4]} 28. Rd1 {[%clk 0:01:55]} 28... Rd6 {[%clk 0:01:38.2]} 29. Re1 {[%clk
0:01:55.1]} 29... Rd8 {[%clk 0:01:35.1]} 30. Qxf6 {[%clk 0:01:54.5]} 30... Qf8
{[%clk 0:01:30.6]} 31. Qh4 {[%clk 0:01:49]} 31... Qd6 {[%clk 0:01:11.6]} 32.
Qxh7 {[%clk 0:01:46.9]} 32... d4 {[%clk 0:01:08.9]} 33. cxd4 {[%clk 0:01:45.8]}
33... Qxd4 {[%clk 0:01:09.2]} 34. Re3 {[%clk 0:01:28.1]} 34... Qxb2 {[%clk
0:01:01.6]} 35. Qxg6 {[%clk 0:01:16.6]} 35... Qa1+ {[%clk 0:00:51.8]} 36. Kh2
{[%clk 0:01:15.4]} 36... Qxa6 {[%clk 0:00:51.8]} 37. Qf6 {[%clk 0:01:13.8]}
37... Qc8 {[%clk 0:00:48.1]} 38. h4 {[%clk 0:01:13]} 38... a5 {[%clk 0:00:47.1]}
39. h5 {[%clk 0:01:01.3]} 39... Rf8 {[%clk 0:00:46.9]} 40. Qh4 {[%clk
0:01:01.8]} 40... Rh8 {[%clk 0:00:31.4]} 41. h6 {[%clk 0:00:56.5]} 41... Qf8
{[%clk 0:00:30.5]} 42. h7 {[%clk 0:00:55]} 42... Qd6+ {[%clk 0:00:26.7]} 43. Rg3
{[%clk 0:00:41.6]} 43... Ka7 {[%clk 0:00:22.7]} 44. f4 {[%clk 0:00:40.7]} 44...
Qd7 {[%clk 0:00:19.1]} 45. Rh3 {[%clk 0:00:37.8]} 45... Qf7 {[%clk 0:00:18.6]}
46. Qh6 {[%clk 0:00:30.1]} 46... a4 {[%clk 0:00:18.3]} 47. Kg1 {[%clk
0:00:22.4]} 47... Ka6 {[%clk 0:00:18.2]} 48. Ra3 {[%clk 0:00:10.7]} 48... Ka5
{[%clk 0:00:17.1]} 49. Qg5+ {[%clk 0:00:10.3]} 49... b5 {[%clk 0:00:17.2]} 50.
Qc5 {[%clk 0:00:08.1]} 50... Qxh7 {[%clk 0:00:11.1]} 51. Qc3+ {[%clk 0:00:05.8]}
51... Ka6 {[%clk 0:00:11]} 52. Qc6+ {[%clk 0:00:05.9]} 52... Ka5 {[%clk
0:00:09.8]} 53. Qc3+ {[%clk 0:00:06]} 53... Kb6 {[%clk 0:00:10.1]} 54. Qd4+
{[%clk 0:00:04.9]} 54... Ka6 {[%clk 0:00:05.1]} 55. Rc3 {[%clk 0:00:02]} 1-0

[Event "Late-Titled-Tuesday-Blitz-April-16-2024"]
[Site "Chess.com"]
[Date "2024.04.16"]
[Round "11"]
[White "RuperezA"]
[Black "lamomiajunior"]
[Result "0-1"]
[WhiteElo "2613"]
[BlackElo "2739"]
[TimeControl "180+1"]
[EndTime "16:06:25 PDT"]
[Termination "lamomiajunior won by resignation"]

1. e4 {[%clk 0:03:00.9]} 1... c5 {[%clk 0:02:59.7]} 2. Nf3 {[%clk 0:03:00.2]}
2... d6 {[%clk 0:03:00]} 3. Bb5+ {[%clk 0:02:59.7]} 3... Nd7 {[%clk 0:02:59.8]}
4. O-O {[%clk 0:02:59.7]} 4... a6 {[%clk 0:03:00.3]} 5. Bxd7+ {[%clk 0:02:59.2]}
5... Bxd7 {[%clk 0:03:01.2]} 6. d4 {[%clk 0:02:59.7]} 6... cxd4 {[%clk
0:02:59.4]} 7. Qxd4 {[%clk 0:03:00.6]} 7... Nf6 {[%clk 0:02:56.8]} 8. Nc3 {[%clk
0:02:58.1]} 8... e6 {[%clk 0:02:56.6]} 9. Bg5 {[%clk 0:02:57.8]} 9... Be7 {[%clk
0:02:57.2]} 10. e5 {[%clk 0:02:55]} 10... dxe5 {[%clk 0:02:57.2]} 11. Nxe5
{[%clk 0:02:55.9]} 11... h6 {[%clk 0:02:48.8]} 12. Bxf6 {[%clk 0:02:48]} 12...
Bxf6 {[%clk 0:02:48.3]} 13. Rad1 {[%clk 0:02:48.6]} 13... Bc6 {[%clk 0:02:07.2]}
14. Qc5 {[%clk 0:02:26.1]} 14... Qe7 {[%clk 0:02:00.3]} 15. Qxe7+ {[%clk
0:02:25.8]} 15... Kxe7 {[%clk 0:02:01.2]} 16. Nxc6+ {[%clk 0:02:25.6]} 16...
bxc6 {[%clk 0:02:02.1]} 17. Na4 {[%clk 0:02:24.9]} 17... Rhd8 {[%clk 0:01:59.3]}
18. b3 {[%clk 0:02:19.2]} 18... Rab8 {[%clk 0:01:59.6]} 19. Nc5 {[%clk
0:02:13.9]} 19... a5 {[%clk 0:01:59.4]} 20. Rfe1 {[%clk 0:02:08.7]} 20... Bd4
{[%clk 0:01:59.1]} 21. Na4 {[%clk 0:02:07.9]} 21... g5 {[%clk 0:01:49.5]} 22.
Kf1 {[%clk 0:02:07.9]} 22... g4 {[%clk 0:01:48.7]} 23. Ke2 {[%clk 0:02:06.9]}
23... f5 {[%clk 0:01:47.9]} 24. Rd3 {[%clk 0:02:02.5]} 24... Be5 {[%clk
0:01:46.1]} 25. Red1 {[%clk 0:01:57]} 25... Rd5 {[%clk 0:01:42]} 26. c4 {[%clk
0:01:54.7]} 26... Rxd3 {[%clk 0:01:41.4]} 27. Rxd3 {[%clk 0:01:55.6]} 27... h5
{[%clk 0:01:38.1]} 28. h3 {[%clk 0:01:49.1]} 28... Bd6 {[%clk 0:01:29.8]} 29. c5
{[%clk 0:01:27.3]} 29... Be5 {[%clk 0:01:28.9]} 30. Nb6 {[%clk 0:01:25.4]} 30...
Rb7 {[%clk 0:01:09]} 31. Nc8+ {[%clk 0:01:20.7]} 31... Kf6 {[%clk 0:01:07.2]}
32. Rd8 {[%clk 0:01:19.5]} 32... Rb5 {[%clk 0:00:59.9]} 33. Rf8+ {[%clk
0:01:02.9]} 33... Kg7 {[%clk 0:00:59.7]} 34. Re8 {[%clk 0:01:00.3]} 34... Kf7
{[%clk 0:00:57.6]} 35. Re7+ {[%clk 0:00:57.6]} 35... Kf6 {[%clk 0:00:57]} 36.
Rh7 {[%clk 0:00:34.8]} 36... Rxc5 {[%clk 0:00:56.8]} 37. Rxh5 {[%clk 0:00:31.2]}
37... gxh3 {[%clk 0:00:55.5]} 38. Rxh3 {[%clk 0:00:24.5]} 38... Rc2+ {[%clk
0:00:55.3]} 39. Kf3 {[%clk 0:00:19.1]} 39... Bd4 {[%clk 0:00:53.2]} 40. Rh7
{[%clk 0:00:19.1]} 40... Rxf2+ {[%clk 0:00:51.6]} 41. Kg3 {[%clk 0:00:20]} 41...
Rxa2 {[%clk 0:00:47.9]} 42. Ne7 {[%clk 0:00:16.8]} 42... c5 {[%clk 0:00:42.7]}
43. Nc6 {[%clk 0:00:07.6]} 43... Rb2 {[%clk 0:00:39.9]} 44. Rh6+ {[%clk
0:00:06.1]} 44... Kg5 {[%clk 0:00:32.8]} 45. Rxe6 {[%clk 0:00:05.5]} 45... Rxb3+
{[%clk 0:00:33]} 46. Kh2 {[%clk 0:00:06.2]} 46... a4 {[%clk 0:00:31.7]} 47. Ne7
{[%clk 0:00:05.5]} 47... a3 {[%clk 0:00:24.9]} 48. Rg6+ {[%clk 0:00:05.3]} 48...
Kh5 {[%clk 0:00:25.4]} 49. Ra6 {[%clk 0:00:05.3]} 49... Be5+ {[%clk 0:00:24.6]}
50. Kg1 {[%clk 0:00:03.2]} 50... Bg3 {[%clk 0:00:25]} 51. Kf1 {[%clk 0:00:02.3]}
51... Re3 {[%clk 0:00:15.6]} 52. Rh6+ {[%clk 0:00:02.9]} 52... Kxh6 {[%clk
0:00:09]} 53. Nxf5+ {[%clk 0:00:03.5]} 53... Kg5 {[%clk 0:00:09.7]} 54. Nxe3
{[%clk 0:00:04.4]} 54... a2 {[%clk 0:00:09]} 55. Nc2 {[%clk 0:00:04.9]} 55...
Be5 {[%clk 0:00:09.4]} 56. Ke2 {[%clk 0:00:05.3]} 56... a1=Q {[%clk 0:00:09.9]}
57. Nxa1 {[%clk 0:00:05.2]} 57... Bxa1 {[%clk 0:00:10.8]} 58. Kd3 {[%clk
0:00:05.5]} 58... Bd4 {[%clk 0:00:11.7]} 0-1

[Event "Late-Titled-Tuesday-Blitz-April-16-2024"]
[Site "Chess.com"]
[Date "2024.04.16"]
[Round "11"]
[White "Hirna2005"]
[Black "emeli_chess"]
[Result "0-1"]
[WhiteElo "2355"]
[BlackElo "2468"]
[TimeControl "180+1"]
[EndTime "16:06:25 PDT"]
[Termination "emeli_chess won on time"]

1. e4 {[%clk 0:03:00.9]} 1... c5 {[%clk 0:02:59.4]} 2. c3 {[%clk 0:02:59.5]}
2... d5 {[%clk 0:02:59.1]} 3. exd5 {[%clk 0:02:59.4]} 3... Qxd5 {[%clk
0:02:59.7]} 4. Nf3 {[%clk 0:02:59.9]} 4... Nf6 {[%clk 0:02:59.4]} 5. Na3 {[%clk
0:02:59.5]} 5... e6 {[%clk 0:02:54.9]} 6. d4 {[%clk 0:02:56.4]} 6... Nc6 {[%clk
0:02:51]} 7. Be3 {[%clk 0:02:50]} 7... cxd4 {[%clk 0:02:49.9]} 8. Nb5 {[%clk
0:02:49]} 8... Qd8 {[%clk 0:02:44]} 9. Nbxd4 {[%clk 0:02:47.5]} 9... Nxd4 {[%clk
0:02:39.6]} 10. Bxd4 {[%clk 0:02:47.4]} 10... Be7 {[%clk 0:02:31.9]} 11. Bd3
{[%clk 0:02:41.1]} 11... O-O {[%clk 0:02:30.5]} 12. Qe2 {[%clk 0:02:40.6]} 12...
h6 {[%clk 0:02:20.4]} 13. O-O-O {[%clk 0:02:38.5]} 13... Qa5 {[%clk 0:02:15.9]}
14. Kb1 {[%clk 0:02:35.3]} 14... Bd7 {[%clk 0:02:03.9]} 15. Ne5 {[%clk
0:02:34.4]} 15... Bc6 {[%clk 0:02:01.1]} 16. Nxc6 {[%clk 0:02:29.5]} 16... bxc6
{[%clk 0:02:01]} 17. g4 {[%clk 0:02:19.3]} 17... Rab8 {[%clk 0:01:56.7]} 18. Ka1
{[%clk 0:01:55.9]} 18... c5 {[%clk 0:01:22.8]} 19. Be5 {[%clk 0:01:53.9]} 19...
Rb6 {[%clk 0:01:15.8]} 20. Bc7 {[%clk 0:01:47.4]} 20... Nd5 {[%clk 0:01:06.4]}
21. Bxb6 {[%clk 0:01:44.8]} 21... axb6 {[%clk 0:01:06.9]} 22. Qe4 {[%clk
0:01:13.6]} 22... g6 {[%clk 0:01:03.8]} 23. h4 {[%clk 0:00:59.6]} 23... Ra8
{[%clk 0:01:01.9]} 24. Bc4 {[%clk 0:00:54]} 24... Bf6 {[%clk 0:00:42.4]} 25.
Bxd5 {[%clk 0:00:46.1]} 25... exd5 {[%clk 0:00:42.3]} 26. Qxd5 {[%clk
0:00:44.6]} 26... Rd8 {[%clk 0:00:39.4]} 27. Qb3 {[%clk 0:00:42.3]} 27... Ra8
{[%clk 0:00:35.4]} 28. h5 {[%clk 0:00:37.4]} 28... g5 {[%clk 0:00:34.8]} 29.
Rhe1 {[%clk 0:00:37]} 29... b5 {[%clk 0:00:33.4]} 30. a3 {[%clk 0:00:23.2]}
30... c4 {[%clk 0:00:33]} 31. Qb4 {[%clk 0:00:20.6]} 31... Qxb4 {[%clk 0:00:31]}
32. cxb4 {[%clk 0:00:20.2]} 32... Rxa3+ {[%clk 0:00:31.2]} 33. Kb1 {[%clk
0:00:19.8]} 33... Rb3 {[%clk 0:00:31]} 34. Re2 {[%clk 0:00:18.9]} 34... c3
{[%clk 0:00:28.6]} 35. Rd6 {[%clk 0:00:17.8]} 35... Bg7 {[%clk 0:00:24.9]} 36.
Rd8+ {[%clk 0:00:15.7]} 36... Kh7 {[%clk 0:00:24.8]} 37. Rc2 {[%clk 0:00:15.6]}
37... cxb2 {[%clk 0:00:24.2]} 38. Rd7 {[%clk 0:00:13.1]} 38... Ra3 {[%clk
0:00:23]} 39. Rxb2 {[%clk 0:00:12.6]} 39... Bxb2 {[%clk 0:00:22]} 40. Kxb2
{[%clk 0:00:12.8]} 40... Rf3 {[%clk 0:00:21.1]} 41. Rd5 {[%clk 0:00:12.9]} 41...
Rxf2+ {[%clk 0:00:21]} 42. Kb3 {[%clk 0:00:13.3]} 42... Rf3+ {[%clk 0:00:20.5]}
43. Kb2 {[%clk 0:00:12.9]} 43... Rf4 {[%clk 0:00:20.7]} 44. Rxb5 {[%clk
0:00:12.7]} 44... Rxg4 {[%clk 0:00:21]} 45. Kb3 {[%clk 0:00:11.7]} 45... Rg1
{[%clk 0:00:17]} 46. Rf5 {[%clk 0:00:11.5]} 46... Kg7 {[%clk 0:00:16.4]} 47. b5
{[%clk 0:00:10.8]} 47... f6 {[%clk 0:00:14.6]} 48. Kc4 {[%clk 0:00:10.2]} 48...
Rb1 {[%clk 0:00:12]} 49. Kc5 {[%clk 0:00:09.1]} 49... Kf7 {[%clk 0:00:12.3]} 50.
Kd6 {[%clk 0:00:08.3]} 50... g4 {[%clk 0:00:11.1]} 51. Kc6 {[%clk 0:00:03.6]}
51... Ke6 {[%clk 0:00:10.5]} 52. Rf2 {[%clk 0:00:02.1]} 52... f5 {[%clk
0:00:10.7]} 53. Re2+ {[%clk 0:00:02.2]} 53... Kf6 {[%clk 0:00:10.6]} 54. b6
{[%clk 0:00:02.6]} 54... f4 {[%clk 0:00:10.8]} 55. Re8 {[%clk 0:00:01.2]} 55...
Kg5 {[%clk 0:00:10.3]} 0-1

[Event "Late-Titled-Tuesday-Blitz-April-16-2024"]
[Site "Chess.com"]
[Date "2024.04.16"]
[Round "11"]
[White "Veleamater"]
[Black "Statham_01"]
[Result "0-1"]
[WhiteElo "2421"]
[BlackElo "2593"]
[TimeControl "180+1"]
[EndTime "16:06:28 PDT"]
[Termination "Statham_01 won on time"]

1. g3 {[%clk 0:03:00.9]} 1... d5 {[%clk 0:02:54.5]} 2. Bg2 {[%clk 0:03:00.8]}
2... Nc6 {[%clk 0:02:48.7]} 3. d3 {[%clk 0:03:01.1]} 3... e5 {[%clk 0:02:49]} 4.
Nf3 {[%clk 0:03:01.4]} 4... f6 {[%clk 0:02:46.4]} 5. O-O {[%clk 0:03:01.3]} 5...
Be6 {[%clk 0:02:47]} 6. Nc3 {[%clk 0:02:56.6]} 6... d4 {[%clk 0:02:45.5]} 7. Nb1
{[%clk 0:02:54.5]} 7... h5 {[%clk 0:02:44.9]} 8. e4 {[%clk 0:02:54.3]} 8... Qd7
{[%clk 0:02:45.1]} 9. Nh4 {[%clk 0:02:52.2]} 9... Nge7 {[%clk 0:02:43.9]} 10. f4
{[%clk 0:02:50.8]} 10... exf4 {[%clk 0:02:42.2]} 11. gxf4 {[%clk 0:02:50.7]}
11... Bg4 {[%clk 0:02:42.5]} 12. Qe1 {[%clk 0:02:50]} 12... O-O-O {[%clk
0:02:42.3]} 13. f5 {[%clk 0:02:45.2]} 13... Ne5 {[%clk 0:02:30.9]} 14. Bf4
{[%clk 0:02:40.9]} 14... g5 {[%clk 0:02:26.1]} 15. Bxe5 {[%clk 0:02:40.6]} 15...
fxe5 {[%clk 0:02:25.7]} 16. Ng6 {[%clk 0:02:27.1]} 16... Nxg6 {[%clk 0:02:25.3]}
17. fxg6 {[%clk 0:02:27.6]} 17... Rg8 {[%clk 0:02:25.5]} 18. Rf7 {[%clk
0:02:26.7]} 18... Be7 {[%clk 0:02:19.6]} 19. Nd2 {[%clk 0:02:22.4]} 19... Be6
{[%clk 0:02:13.2]} 20. Rh7 {[%clk 0:02:20.4]} 20... Rxg6 {[%clk 0:02:10.9]} 21.
Rxh5 {[%clk 0:02:17.5]} 21... g4 {[%clk 0:02:08.6]} 22. Rh7 {[%clk 0:02:05.6]}
22... g3 {[%clk 0:02:03]} 23. h4 {[%clk 0:02:00.5]} 23... Rf8 {[%clk 0:02:02.6]}
24. Nf3 {[%clk 0:01:52.5]} 24... Qd6 {[%clk 0:01:41.1]} 25. Qa5 {[%clk
0:01:41.2]} 25... Rxf3 {[%clk 0:01:28.6]} 26. Bxf3 {[%clk 0:01:38.2]} 26... a6
{[%clk 0:01:15.4]} 27. Qd2 {[%clk 0:01:34.7]} 27... Kb8 {[%clk 0:01:12.2]} 28.
Rh6 {[%clk 0:01:29.9]} 28... Rg8 {[%clk 0:01:12.3]} 29. Kg2 {[%clk 0:01:23.9]}
29... Qd7 {[%clk 0:01:09.3]} 30. Rh1 {[%clk 0:01:22.1]} 30... Bg4 {[%clk
0:01:08]} 31. Qe2 {[%clk 0:01:18.9]} 31... Bxf3+ {[%clk 0:01:06.5]} 32. Qxf3
{[%clk 0:01:18.4]} 32... Rf8 {[%clk 0:01:07.2]} 33. Qxg3 {[%clk 0:01:15.4]}
33... Rf4 {[%clk 0:01:06.8]} 34. Rg6 {[%clk 0:01:13.9]} 34... Qb5 {[%clk
0:01:03.2]} 35. b3 {[%clk 0:01:12.4]} 35... Qc5 {[%clk 0:01:03.5]} 36. Rf1
{[%clk 0:01:09.8]} 36... Bxh4 {[%clk 0:00:56.9]} 37. Qh3 {[%clk 0:00:39.8]}
37... Qxc2+ {[%clk 0:00:55.2]} 38. Kh1 {[%clk 0:00:39.5]} 38... Bf2 {[%clk
0:00:48.7]} 39. Rg2 {[%clk 0:00:28.7]} 39... Qe2 {[%clk 0:00:44.3]} 40. Rg8+
{[%clk 0:00:22.8]} 40... Ka7 {[%clk 0:00:43.7]} 41. Kg2 {[%clk 0:00:20.3]} 41...
Be3+ {[%clk 0:00:37.5]} 42. Kg3 {[%clk 0:00:18.3]} 42... Bf2+ {[%clk 0:00:21.3]}
43. Kg2 {[%clk 0:00:15.2]} 43... Be3+ {[%clk 0:00:09.8]} 44. Kg3 {[%clk
0:00:15.5]} 44... Rxf1 {[%clk 0:00:10.1]} 45. Kh4 {[%clk 0:00:09.2]} 45... Rf4+
{[%clk 0:00:09.2]} 46. Kg5 {[%clk 0:00:09.4]} 46... Rf3+ {[%clk 0:00:08.5]} 47.
Kh4 {[%clk 0:00:09.5]} 47... Qf2+ {[%clk 0:00:08.4]} 48. Rg3 {[%clk 0:00:05.1]}
48... Bf4 {[%clk 0:00:05.3]} 49. Kg4 {[%clk 0:00:01.1]} 49... Rxg3+ {[%clk
0:00:05.3]} 50. Qxg3 {[%clk 0:00:01.4]} 50... Qxg3+ {[%clk 0:00:05.5]} 51. Kf5
{[%clk 0:00:01.6]} 51... Qg8 {[%clk 0:00:06]} 0-1